Workbook

Sheet Goal Return Optimizer
A1: Retirement Planner (Read and enter data row by row. Fill only cells in green) | L1: 0.1052104931 | M1: Year | N1: Monthly | Q1: Additional | R1: Withdrawal | S1: Corpus | AA1: equity investing stops | AB1: 0 | AD1: 0 | AF1: 0 | AH1: 0 | AJ1: 0
A2: No of years you expect to work | B2: 20 | D2: Current monthly expenses that will persist in retirement | J2: 30000 | L2: =g0-epf -> 46481858.48 | N2: investment | Q2: investment | AA2: max equity investing years | AB2: =B15-AB1 -> 10 | AD2: =D15-AD1 -> 12 | AF2: =F15-AF1 -> 14 | AH2: =H15-AH1 -> 16 | AJ2: =J15-AJ1 -> 18
A3: Annual expenses that will persist in retirement | B3: 0 | D3: factor in new expenses in retirement (eg. health) as a % | J3: 0 | L3: =wy -> 20 | M3: 1 | N3: =IF(M3=0,0,invest*(1+increment)^(M3-1)) -> 27000 | O3: =IF(ISERROR(IF(M3="","",IF(M3=loany1,loansip1,IF(O2=loansip1,loansip1,0)))+IF(M3="","",IF(M3=loany2,loansip2,IF(P2=loansip2,loansip2,0)))),"",IF(M3="","",IF(M3=loany1,loansip1,IF(O2=loansip1,loansip1,0)))+IF(M3="","",IF(M3=loany2,loansip2,IF(P2=loansip2,loansip2,0)))) -> 0 | P3: =IF(M3="","",IF(M3=loany2,loansip2,IF(P2=loansip2,loansip2,0))) -> 0 | Q3: =IF(ISERROR(IF(M3=0,0,IF(M3=loany1,loansip1,IF(O2=loansip1,loansip1,0)))+IF(M3=0,0,IF(M3=loany2,loansip2,IF(P2=loansip2,loansip2,0)))),"",IF(M3=0,0,IF(M3=loany1,loansip1,IF(O2=loansip1,loansip1,0)))+IF(M3=0,0,IF(M3=loany2,loansip2,IF(P2=loansip2,loansip2,0)))) -> 0 | R3: =IF(M3=ygoal1,goal1,IF(M3=ygoal2,goal2,IF(M3=ygoal3,goal3,IF(M3=ygoal4,goal4,IF(M3=ygoal5,goal5,0))))) -> 0 | S3: =IF(M3=0,0,((N3+Q3)*12+(S2-R2))*(1+interest)) -> 358088.1998 | AA3: * that is less than | AB3: =wy -> 20 | AD3: years
A4: Expected inflation after retirement | B4: 0.08 | D4: Expected inflation upto retirement (do not underestimate) | J4: 0.09 | L4: =B29 -> 27000 | M4: =IF(M3=wy,0,IF(M3=0,0,IF(M3>=wy,"",M3+1))) -> 2 | N4: 29700 | O4: =IF(M4="","",IF(M4=loany1,loansip1,IF(O3=loansip1,loansip1,0))) -> 0 | P4: 0 | Q4: 0 | R4: 0 | S4: 789659.8556 | AB4: =IF(B15>=AB3,1,IF(D15>=AB3,1,IF(F15>=AB3,1,IF(H15>=AB3,1,IF(J15>=AB3,1,0))))) -> 0
A5: Years after retirement you expect to live! | B5: 31 | D5: Anticipated post-retirement rate of interest | J5: 0.08 | M5: 3 | N5: 32670 | O5: 0 | P5: 0 | Q5: 0 | R5: 0 | S5: 1306027.08 | AA5: * less than | AB5: =wy -> 20 | AC5: years | AG5: 0
A6: Your monthly PF contribution* | B6: 18000 | D6: projected annual increase in monthly contribution % | J6: 0.05 | M6: 4 | N6: 35937 | O6: 0 | P6: 0 | Q6: 0 | R6: 0 | S6: 1920050.227 | AA6: =CONCATENATE(AA5,AB5,AC5) -> * less than 20 years | AG6: 0.1
A7: * (It is assumed your employer matches this) | D7: Projected EPF corpus when you retire (EPS corpus is not included)** | J7: =B8*(1+B9)^wy+((((1+IF(B9=J6,B9+0.00001%,B9))^wy)-((1+J6)^wy))/(IF(B9=J6,B9+0.00001%,B9)-J6))*12*(B6+B6*3.67%) -> 24307566.18 | M7: 5 | N7: 39530.7 | O7: 30000 | P7: 0 | Q7: 30000 | R7: 0 | S7: 3044212.369 | AG7: 0.2
A8: Current EPF balance | B8: 2000000 | D8: ** Only 3.67% of employers contributions goes to EPF. Rest goes to EPS to generate pension | M8: 6 | N8: 43483.77 | O8: 30000 | P8: 0 | Q8: 30000 | R8: 0 | S8: 4339075.858 | AG8: 0.3
A9: average EPF rate of interest % | B9: 0.08 | D9: Estimated tax rate on monthy pension | J9: =(1+3%)*IF(expenses*(1+addexp)*12<=200000,0,IF(expenses*(1+addexp)*12<=500000,(expenses*(1+addexp)*12-200000)*10%,IF(expenses*(1+addexp)*12<=1000000,30000+(expenses*(1+addexp)*12-500000)*20%,30000+500000*20%+(expenses*(1+addexp)*12-1000000)*30%)))/(expenses*(1+addexp)*12) -> 0.04577777778 | M9: 7 | N9: 47832.147 | O9: 30000 | P9: 0 | Q9: 30000 | R9: 0 | S9: 5827843.035
A10: Average current expenses per month | B10: =J2+(B3/12) -> 30000 | D10: Post-tax corpus (incl. EPF) reqd for monthly annuity (inflation-indexed) for life | J10: =PV((1+retroi)/(1+inf)-1,k,-prepen1*12,,1) -> 70789424.65 | M10: 8 | N10: 52615.3617 | O10: 30000 | P10: 0 | Q10: 30000 | R10: 0 | S10: 7536681.651
A11: Pre-tax monthly pension in 1st year of retirement | B11: =(expenses+J3*expenses)*(1+preinf)^(wy)*(1+inf)^(1)/(1-J9) -> 190294.1523 | D11: Estimate annual increase in monthly investments you can afford (non-EPF) | J11: 0.1 | M11: 9 | N11: 57876.89787 | O11: 30000 | P11: 0 | Q11: 30000 | R11: 0 | S11: 9495089.279
M12: 10 | N12: 63664.58766 | O12: 30000 | P12: 30000 | Q12: 60000 | R12: 3890613.69 | S12: 12134177.1
A13: Goal Planner (Fill only cells in green) | M13: 11 | N13: 70031.04642 | O13: 30000 | P13: 30000 | Q13: 60000 | R13: 0 | S13: 10835412.91
A14: Enter name of the goal for your reference | B14: Goal 1 | D14: Goal 2 | F14: Goal 3 | H14: Goal 4 | J14: Goal 5 | M14: 12 | N14: 77034.15106 | O14: 30000 | P14: 30000 | Q14: 60000 | R14: 4707642.565 | S14: 13792831.02
A15: Years to goal (has to be before retirement)* | B15: 10 | D15: 12 | F15: 14 | H15: 16 | J15: 18 | M15: 13 | N15: 84737.56617 | O15: 30000 | P15: 30000 | Q15: 60000 | R15: 0 | S15: 11960631.34
A16: Present cost | B16: 1500000 | D16: 1500000 | F16: 0 | H16: 121212 | J16: 0 | M16: 14 | N16: 93211.32279 | O16: 30000 | P16: 30000 | Q16: 60000 | R16: 0 | S16: 15250984.4
A17: inflation | B17: 0.1 | D17: 0.1 | F17: 0.1 | H17: 0.1 | J17: 0.07 | M17: 15 | N17: 102532.4551 | O17: 30000 | P17: 30000 | Q17: 60000 | R17: 0 | S17: 19011138.89
A18: Future Cost | B18: =B16*(1+B17)^ygoal1 -> 3890613.69 | D18: =D16*(1+D17)^ygoal2 -> 4707642.565 | F18: =F16*(1+F17)^ygoal3 -> 0 | H18: =H16*(1+H17)^ygoal4 -> 556965.8656 | J18: =J16*(1+J17)^ygoal5 -> 0 | M18: 16 | N18: 112785.7006 | O18: 30000 | P18: 30000 | Q18: 60000 | R18: 556965.8656 | S18: 23302885.01
A19: =CONCATENATE(AA3,AB3,AD3) -> * that is less than 20 years | B19: It is recommended that you use this optimizer for long-term goals only (10 years or more away) | M19: 17 | N19: 124064.2706 | O19: 30000 | P19: 30000 | Q19: 60000 | R19: 0 | S19: 27580185.68
M20: 18 | N20: 136470.6977 | O20: 30000 | P20: 30000 | Q20: 60000 | R20: 0 | S20: 33087608.33
A21: Let us assume you can spare a reasonably fixed amount each month from your take-home pay for all your financial goals.The idea is to determine the | M21: 19 | N21: 150117.7675 | O21: 30000 | P21: 30000 | Q21: 60000 | R21: 0 | S21: 39355464.26
A22: rate of return required to meet all your financial goals assuming you keep investing regularly from now to retirement and withdraw the necessary amounts | M22: 20 | N22: 165129.5442 | O22: 30000 | P22: 30000 | Q22: 60000 | R22: 0 | S22: 46481858.48
A23: needed for other goals as and when you need them. The rate of return is the average return of equity and debt instruments. If this average return is reasonable | M23: 0 | N23: 0 | O23: 30000 | P23: 30000 | Q23: 0 | R23: 0 | S23: 0
A24: you stand a decent chance of achieving your goals. If is too high then you will need to consider: | M24: 0 | N24: 0 | O24: 30000 | P24: 30000 | Q24: 0 | R24: 0 | S24: 0
A25: 1) using other assets or other means to meet some goals. | M25: 0 | N25: 0 | O25: 30000 | P25: 30000 | Q25: 0 | R25: 0 | S25: 0
A26: 2) postpone some goals or reduce your expectations. | M26: 0 | N26: 0 | O26: 30000 | P26: 30000 | Q26: 0 | R26: 0 | S26: 0
A27: 3) You could try decreasing inflation but this may not practical. | M27: 0 | N27: 0 | O27: 30000 | P27: 30000 | Q27: 0 | R27: 0 | S27: 0
A28: Inputs Required | M28: 0 | N28: 0 | O28: 30000 | P28: 30000 | Q28: 0 | R28: 0 | S28: 0
A29: Total amount you can spare each month | B29: 27000 | D29: % by which you afford to increase the monthly investment each year | J29: 0.1 | M29: 0 | N29: 0 | O29: 30000 | P29: 30000 | Q29: 0 | R29: 0 | S29: 0
A30: Can you increase more after a few years due to closure of loans? You can include details of two loans | M30: 0 | N30: 0 | O30: 30000 | P30: 30000 | Q30: 0 | R30: 0 | S30: 0
A31: Extra amount you can invest per month | B31: 30000 | C31: after | F31: 5 | G31: =CONCATENATE("years (before retirement) ","i.e. ",AB3,AD3) -> years (before retirement) i.e. 20 years | M31: 0 | N31: 0 | O31: 30000 | P31: 30000 | Q31: 0 | R31: 0 | S31: 0
A32: Extra amount you can invest per month | B32: 30000 | C32: after | F32: 10 | G32: =CONCATENATE("years (before retirement) ","i.e. ",AB3,AD3) -> years (before retirement) i.e. 20 years | M32: 0 | N32: 0 | O32: 30000 | P32: 30000 | Q32: 0 | R32: 0 | S32: 0
M33: 0 | N33: 0 | O33: 30000 | P33: 30000 | Q33: 0 | R33: 0 | S33: 0
H34: =L1 -> 0.1052104931 | M34: 0 | N34: 0 | O34: 30000 | P34: 30000 | Q34: 0 | R34: 0 | S34: 0
M35: 0 | N35: =IF(M35=0,0,invest*(1+increment)^(M35-1)) -> 0 | O35: 30000 | P35: =IF(M35="","",IF(M35=loany2,loansip2,IF(P34=loansip2,loansip2,0))) -> 30000 | Q35: =IF(ISERROR(IF(M35=0,0,IF(M35=loany1,loansip1,IF(O34=loansip1,loansip1,0)))+IF(M35=0,0,IF(M35=loany2,loansip2,IF(P34=loansip2,loansip2,0)))),"",IF(M35=0,0,IF(M35=loany1,loansip1,IF(O34=loansip1,loansip1,0)))+IF(M35=0,0,IF(M35=loany2,loansip2,IF(P34=loansip2,loansip2,0)))) -> 0 | R35: =IF(M35=ygoal1,goal1,IF(M35=ygoal2,goal2,IF(M35=ygoal3,goal3,IF(M35=ygoal4,goal4,IF(M35=ygoal5,goal5,0))))) -> 0 | S35: =IF(M35=0,0,((N35+Q35)*12+(S34-R34))*(1+interest)) -> 0
M36: =IF(M35=wy,0,IF(M35=0,0,IF(M35>=wy,"",M35+1))) -> 0 | N36: 0 | O36: =IF(M36="","",IF(M36=loany1,loansip1,IF(O35=loansip1,loansip1,0))) -> 30000 | P36: 30000 | Q36: 0 | R36: 0 | S36: 0
A37: This is average rate of return required to meet all your financial goals, for the amount you can invest. Is this reasonable? | M37: 0 | N37: 0 | O37: 30000 | P37: 30000 | Q37: 0 | R37: 0 | S37: 0
M38: 0 | N38: 0 | O38: 30000 | P38: 30000 | Q38: 0 | R38: 0 | S38: 0
A39: Assuming you are using this only for long term goals only (10 years or more away), you will need about 70% equity exposure and 30% exposure | M39: 0 | N39: 0 | O39: 30000 | P39: 30000 | Q39: 0 | R39: 0 | S39: 0
A40: Let us assume that we expect a pre-tax return of about 8% from debt instruments. We could then calculate return needed from equities. | M40: 0 | N40: 0 | O40: 30000 | P40: 30000 | Q40: 0 | R40: 0 | S40: 0
A41: If the equity return is much more than 12% then, in my view, it is not reasonable. I would recommend modifying goal parameters to bring this down. | M41: 0 | N41: 0 | O41: 30000 | P41: 30000 | Q41: 0 | R41: 0 | S41: 0
A42: Less then 12% equity return is a good result to have. Does not mean you are guaranteed of success. It just means you are less likely to fail! | M42: 0 | N42: 0 | O42: 30000 | P42: 30000 | Q42: 0 | R42: 0 | S42: 0
M43: 0 | N43: 0 | O43: 30000 | P43: 30000 | Q43: 0 | R43: 0 | S43: 0
A44: Equity allocation | B44: 0.7 | D44: Rest is assumed to be invested in debt instruments | J44: =1-B44 -> 0.3 | M44: 0 | N44: 0 | O44: 30000 | P44: 30000 | Q44: 0 | R44: 0 | S44: 0
A45: Rest is assumed to be invested in debt instrum. | B45: =1-B44 -> 0.3 | D45: Expected return from debt instrument (not more than 8-9%) | J45: 0.08 | M45: 0 | N45: 0 | O45: 30000 | P45: 30000 | Q45: 0 | R45: 0 | S45: 0
A46: Tax rate applicable to debt instrument | B46: 0.2 | D46: Approximate post-tax return from debt instruments | J46: =retdeb*(1-IF(tax=10%,10.3%,IF(tax=20%,20.6%,IF(tax=30%,30.9%)))) -> 0.06352 | M46: 0 | N46: 0 | O46: 30000 | P46: 30000 | Q46: 0 | R46: 0 | S46: 0
M47: 0 | N47: 0 | O47: 30000 | P47: 30000 | Q47: 0 | R47: 0 | S47: 0
A48: The projected cash flow is shown in the adjoining chart | D48: Expected return from equity instruments | H48: =(H34-(J44*J46))/B44 -> 0.1230778473 | M48: 0 | N48: 0 | O48: 30000 | P48: 30000 | Q48: 0 | R48: 0 | S48: 0
M49: 0 | N49: 0 | O49: 30000 | P49: 30000 | Q49: 0 | R49: 0 | S49: 0
M50: 0 | N50: 0 | O50: 30000 | P50: 30000 | Q50: 0 | R50: 0 | S50: 0
A51: Remember: Equity return of more than 12% is not practical irrespective of duration and perhaps expertise. For durations of about 10 years or so I would expect | M51: 0 | N51: 0 | O51: 30000 | P51: 30000 | Q51: 0 | R51: 0 | S51: 0
A52: no more than about 10% from equity. | M52: 0 | N52: 0 | O52: 30000 | P52: 30000 | Q52: 0 | R52: 0 | S52: 0
M53: 0 | N53: 0 | O53: 30000 | P53: 30000 | Q53: 0 | R53: 0 | S53: 0
M54: 0 | N54: 0 | O54: 30000 | P54: 30000 | Q54: 0 | R54: 0 | S54: 0
M55: 0 | N55: 0 | O55: 30000 | P55: 30000 | Q55: 0 | R55: 0 | S55: 0
M56: 0 | N56: 0 | O56: 30000 | P56: 30000 | Q56: 0 | R56: 0 | S56: 0
M57: 0 | N57: 0 | O57: 30000 | P57: 30000 | Q57: 0 | R57: 0 | S57: 0
M58: 0 | N58: 0 | O58: 30000 | P58: 30000 | Q58: 0 | R58: 0 | S58: 0
M59: 0 | N59: 0 | O59: 30000 | P59: 30000 | Q59: 0 | R59: 0 | S59: 0
M60: 0 | N60: 0 | O60: 30000 | P60: 30000 | Q60: 0 | R60: 0 | S60: 0
M61: 0 | N61: 0 | O61: 30000 | P61: 30000 | Q61: 0 | R61: 0 | S61: 0
M62: 0 | N62: 0 | O62: 30000 | P62: 30000 | Q62: 0 | R62: 0 | S62: 0
M63: 0 | N63: 0 | O63: 30000 | P63: 30000 | Q63: 0 | R63: 0 | S63: 0
M64: 0 | N64: 0 | O64: 30000 | P64: 30000 | Q64: 0 | R64: 0 | S64: 0
M65: 0 | N65: 0 | O65: 30000 | P65: 30000 | Q65: 0 | R65: 0 | S65: 0
M66: 0 | N66: 0 | O66: 30000 | P66: 30000 | Q66: 0 | R66: 0 | S66: 0
M67: 0 | N67: =IF(M67=0,0,invest*(1+increment)^(M67-1)) -> 0 | O67: 30000 | P67: =IF(M67="","",IF(M67=loany2,loansip2,IF(P66=loansip2,loansip2,0))) -> 30000 | Q67: =IF(ISERROR(IF(M67=0,0,IF(M67=loany1,loansip1,IF(O66=loansip1,loansip1,0)))+IF(M67=0,0,IF(M67=loany2,loansip2,IF(P66=loansip2,loansip2,0)))),"",IF(M67=0,0,IF(M67=loany1,loansip1,IF(O66=loansip1,loansip1,0)))+IF(M67=0,0,IF(M67=loany2,loansip2,IF(P66=loansip2,loansip2,0)))) -> 0 | R67: =IF(M67=ygoal1,goal1,IF(M67=ygoal2,goal2,IF(M67=ygoal3,goal3,IF(M67=ygoal4,goal4,IF(M67=ygoal5,goal5,0))))) -> 0 | S67: =IF(M67=0,0,((N67+Q67)*12+(S66-R66))*(1+interest)) -> 0
M68: =IF(M67=wy,0,IF(M67=0,0,IF(M67>=wy,"",M67+1))) -> 0 | N68: 0 | O68: =IF(M68="","",IF(M68=loany1,loansip1,IF(O67=loansip1,loansip1,0))) -> 30000 | P68: 30000 | Q68: 0 | R68: 0 | S68: 0
M69: 0 | N69: 0 | O69: 30000 | P69: 30000 | Q69: 0 | R69: 0 | S69: 0
M70: 0 | N70: 0 | O70: 30000 | P70: 30000 | Q70: 0 | R70: 0 | S70: 0
M71: 0 | N71: 0 | O71: 30000 | P71: 30000 | Q71: 0 | R71: 0 | S71: 0
M72: 0 | N72: 0 | O72: 30000 | P72: 30000 | Q72: 0 | R72: 0 | S72: 0
M73: 0 | N73: 0 | O73: 30000 | P73: 30000 | Q73: 0 | R73: 0 | S73: 0
M74: 0 | N74: 0 | O74: 30000 | P74: 30000 | Q74: 0 | R74: 0 | S74: 0
M75: 0 | N75: 0 | O75: 30000 | P75: 30000 | Q75: 0 | R75: 0 | S75: 0
M76: 0 | N76: 0 | O76: 30000 | P76: 30000 | Q76: 0 | R76: 0 | S76: 0
M77: 0 | N77: 0 | O77: 30000 | P77: 30000 | Q77: 0 | R77: 0 | S77: 0
M78: 0 | N78: 0 | O78: 30000 | P78: 30000 | Q78: 0 | R78: 0 | S78: 0
M79: 0 | N79: 0 | O79: 30000 | P79: 30000 | Q79: 0 | R79: 0 | S79: 0
M80: 0 | N80: 0 | O80: 30000 | P80: 30000 | Q80: 0 | R80: 0 | S80: 0
M81: 0 | N81: 0 | O81: 30000 | P81: 30000 | Q81: 0 | R81: 0 | S81: 0
M82: 0 | N82: 0 | O82: 30000 | P82: 30000 | Q82: 0 | R82: 0 | S82: 0
M83: 0 | N83: 0 | O83: 30000 | P83: 30000 | Q83: 0 | R83: 0 | S83: 0
M84: 0 | N84: 0 | O84: 30000 | P84: 30000 | Q84: 0 | R84: 0 | S84: 0
M85: 0 | N85: 0 | O85: 30000 | P85: 30000 | Q85: 0 | R85: 0 | S85: 0
M86: 0 | N86: 0 | O86: 30000 | P86: 30000 | Q86: 0 | R86: 0 | S86: 0
M87: 0 | N87: 0 | O87: 30000 | P87: 30000 | Q87: 0 | R87: 0 | S87: 0
M88: 0 | N88: 0 | O88: 30000 | P88: 30000 | Q88: 0 | R88: 0 | S88: 0
M89: 0 | N89: 0 | O89: 30000 | P89: 30000 | Q89: 0 | R89: 0 | S89: 0
M90: 0 | N90: 0 | O90: 30000 | P90: 30000 | Q90: 0 | R90: 0 | S90: 0
M91: 0 | N91: 0 | O91: 30000 | P91: 30000 | Q91: 0 | R91: 0 | S91: 0
M92: 0 | N92: 0 | O92: 30000 | P92: 30000 | Q92: 0 | R92: 0 | S92: 0
M93: 0 | N93: 0 | O93: 30000 | P93: 30000 | Q93: 0 | R93: 0 | S93: 0
M94: 0 | N94: 0 | O94: 30000 | P94: 30000 | Q94: 0 | R94: 0 | S94: 0
M95: 0 | N95: 0 | O95: 30000 | P95: 30000 | Q95: 0 | R95: 0 | S95: 0
M96: 0 | N96: 0 | O96: 30000 | P96: 30000 | Q96: 0 | R96: 0 | S96: 0
M97: 0 | N97: 0 | O97: 30000 | P97: 30000 | Q97: 0 | R97: 0 | S97: 0
M98: 0 | N98: 0 | O98: 30000 | P98: 30000 | Q98: 0 | R98: 0 | S98: 0
M99: 0 | N99: =IF(M99=0,0,invest*(1+increment)^(M99-1)) -> 0 | O99: 30000 | P99: 30000 | Q99: 0 | R99: 0 | S99: 0
M100: 0 | N100: 0 | O100: 30000 | P100: 30000 | Q100: 0 | R100: 0 | S100: 0
